bitfinex/quotes_SOLUSD_20220216
["timestamp","ask_amount","ask_price","bid_price","bid_amount"]
[1645023791566,100.5,99.329,99.231,47.9435]
[1645023791767,15.1063,99.33,99.231,50.39194074]
[1645023792563,15.1063,99.33,99.232,100.5]
[1645023792964,15.1063,99.33,99.24,15.107]
[1645023793965,15.1046,99.34,99.241,100.5]
[1645023794162,15.1046,99.34,99.26,15.1038]
[1645023795570,15.3533,99.35,99.261,100.5]
[1645023795770,0.25,99.35,99.27,15.1026]
[1645023795970,0.25,99.35,99.271,23.2618]
[1645023796369,0.41280236,99.358,99.271,23.2618]
[1645023796872,0.41280236,99.358,99.272,100.5]
[1645023797271,0.41280236,99.358,99.271,23.2618]
[1645023797272,0.41280236,99.358,99.281,100.5]
[1645023797472,0.41280236,99.358,99.281,106.91]
[1645023797697,0.41280236,99.358,99.283,100.5]
[1645023798471,0.41280236,99.358,99.282,22.5867]
[1645023798872,0.41280236,99.358,99.29,15.0991]
[1645023801075,0.41280236,99.358,99.291,100.5]
[1645023801274,0.41280236,99.358,99.29,15.0991]
[1645023804379,0.41280236,99.358,99.291,100.5]
[1645023804576,0.41280236,99.358,99.3,15.0983]
[1645023804777,0.41280236,99.358,99.282,22.5867]
[1645023806805,0.41280236,99.358,99.29,15.0996]
[1645023807308,0.41280236,99.358,99.282,22.5867]
[1645023809206,0.41280236,99.358,99.283,100.5]
[1645023809405,0.41280236,99.358,99.291,100.5]
[1645023810410,0.41280236,99.358,99.301,100.5]
[1645023811009,0.41280236,99.358,99.302,2.44961308]
[1645023811411,0.41280236,99.358,99.31,15.0948]
[1645023812609,0.41280236,99.358,99.302,2.44961308]
[1645023813012,0.41280236,99.358,99.289,2.44350058]
[1645023813211,0.41280236,99.358,99.277,15.1343]
[1645023814210,0.41280236,99.358,99.29,15.0986]
[1645023815417,0.41280236,99.358,99.277,15.1343]
[1645023815616,0.25,99.352,99.277,15.1343]
[1645023815815,0.41280236,99.358,99.277,15.1343]
[1645023815816,0.41280236,99.358,99.278,100.5]
[1645023816519,0.25,99.352,99.28,15.101]
[1645023817521,0.25,99.352,99.241,50.07]
[1645023817522,15.1032,99.35,99.241,50.07]
[1645023817821,100.5,99.347,99.241,23.346]
[1645023818521,2.50588295,99.346,99.241,23.346]
[1645023819123,100.5,99.339,99.241,23.346]
[1645023820122,15.1071,99.34,99.241,23.346]
[1645023820325,100.5,99.339,99.241,23.346]
[1645023821925,15.1071,99.34,99.241,23.346]
[1645023822127,6.0,99.348,99.242,100.5]
[1645023822329,0.25,99.352,99.242,100.5]
[1645023822527,100.5,99.359,99.241,33.74950058]
[1645023822826,100.5,99.359,99.241,25.78950058]
[1645023823027,100.5,99.359,99.241,23.346]
[1645023823228,100.5,99.349,99.241,23.346]
[1645023823428,27.1556,99.35,99.241,23.346]
[1645023824251,27.1556,99.35,99.242,100.5]
[1645023824652,0.25,99.34,99.242,100.5]
[1645023825251,15.1056,99.35,99.243,2.44350058]
[1645023825454,100.5,99.349,99.243,2.44350058]
[1645023825652,100.5,99.339,99.241,23.346]
[1645023825852,6.0,99.34,99.241,23.346]
[1645023826857,0.25,99.33,99.241,23.346]
[1645023827052,6.0,99.34,99.241,23.346]
[1645023830063,100.5,99.339,99.241,23.346]
[1645023830260,0.25,99.33,99.241,23.346]
[1645023831860,100.5,99.329,99.241,23.346]
[1645023838967,100.5,99.319,99.241,23.346]
[1645023839368,15.1084,99.32,99.241,23.346]
[1645023839771,0.25,99.33,99.241,23.346]
[1645023840469,18.05,99.34,99.242,100.5]
[1645023840470,6.0,99.34,99.242,100.5]
[1645023840670,6.0,99.34,99.242,102.9311603]
[1645023840868,24.4271,99.347,99.241,23.346]
[1645023840869,24.4271,99.347,99.251,100.5]
[1645023841069,0.20732222,99.364,99.251,100.5]
[1645023841370,0.20732222,99.364,99.252,2.4311603]
[1645023841773,0.20732222,99.364,99.251,100.5]
[1645023842070,0.20732222,99.364,99.252,2.4311603]
[1645023842671,0.20732222,99.364,99.254,100.5]
[1645023842873,15.1024,99.36,99.27,15.1024]
[1645023843073,15.1024,99.36,99.271,24.3262]
[1645023843270,0.20732222,99.364,99.271,24.3262]
[1645023843271,100.5,99.359,99.271,24.3262]
[1645023843671,0.25,99.349,99.271,24.3262]
[1645023843872,100.5,99.348,99.271,24.3262]
[1645023844473,6.25,99.349,99.207,10.52374885]
[1645023844474,100.5,99.329,99.24,15.1079]
[1645023844875,2.50588295,99.328,99.24,15.1079]
[1645023845576,100.5,99.319,99.236,23.9418]
[1645023846977,15.1103,99.31,99.236,23.9418]
[1645023847474,100.5,99.309,99.199,50.07]
[1645023847677,103.00588295,99.309,99.201,45.9865]
[1645023847882,15.1128,99.29,99.201,45.9865]
[1645023848081,23.162,99.317,99.202,2.4311603]
[1645023848281,23.162,99.317,99.202,26.20386215]
[1645023848481,23.162,99.317,99.204,100.5]
[1645023848981,23.162,99.317,99.211,100.5]
[1645023849181,15.1105,99.31,99.205,18.82386215]
[1645023849382,100.5,99.309,99.205,18.82386215]
[1645023849581,15.1105,99.31,99.206,2.4311603]
[1645023849987,15.1105,99.31,99.206,52.5011603]
[1645023850181,15.1105,99.31,99.207,66.46270185]
[1645023850383,15.1105,99.31,99.23,15.1089]
[1645023850582,15.1105,99.31,99.231,23.5235]
[1645023851181,6.77817989,99.437,99.231,23.5235]
[1645023851182,2.81386838,99.354,99.232,102.9311603]
[1645023851386,2.81386838,99.371,99.24,15.1082]
[1645023851581,2.81386838,99.379,99.241,100.5]
[1645023851993,2.81386838,99.382,99.246,50.07]
[1645023852183,100.5,99.385,99.251,100.5]
[1645023852384,100.5,99.385,99.253,100.5]
[1645023852783,100.5,99.385,99.254,50.07]
[1645023852986,15.1002,99.37,99.271,100.5]
[1645023853186,15.1002,99.37,99.272,47.3007]
[1645023853586,0.00637732,99.351,99.273,100.5]
[1645023853786,0.00637732,99.351,99.281,100.5]
[1645023853985,0.11454996,99.358,99.291,100.5]
[1645023854186,0.11454996,99.358,99.293,100.5]
[1645023854687,0.11454996,99.358,99.292,27.0234603]
[1645023854888,0.11454996,99.358,99.294,2.4311603]
[1645023855886,0.11454996,99.358,99.31,15.0933]
[1645023856488,0.11454996,99.358,99.292,24.5923]
[1645023857088,0.11454996,99.358,99.3,15.0999]
[1645023858588,0.11454996,99.358,99.301,2.4311603]
[1645023858788,0.11454996,99.358,99.31,15.0964]
[1645023859188,0.11454996,99.358,99.311,2.4311603]
[1645023860195,0.11454996,99.358,99.292,24.5923]
[1645023860992,0.11454996,99.358,99.293,102.9311603]
[1645023861496,0.11454996,99.358,99.293,2.4311603]
[1645023861893,0.11454996,99.358,99.3,15.099]
[1645023862695,0.11454996,99.358,99.301,2.4311603]
[1645023862896,0.11454996,99.358,99.31,15.0976]
[1645023863597,0.11454996,99.358,99.311,2.42509429]
[1645023864595,0.11454996,99.358,99.32,15.0947]
[1645023864998,0.00454996,99.358,99.321,102.92509429]
[1645023865230,0.00454996,99.358,99.325,100.5]
[1645023865496,0.00454996,99.358,99.325,150.57]
[1645023865700,0.00454996,99.358,99.33,15.0936]
[1645023866097,0.00454996,99.358,99.33,17.51869429]
[1645023867400,0.00454996,99.358,99.331,100.5]
[1645023867601,0.00454996,99.358,99.34,15.0924]
[1645023870009,0.20044422,99.438,99.35,15.0907]
[1645023870010,0.00105256,99.364,99.35,15.0907]
[1645023870210,0.00819984,99.367,99.355,100.5]
[1645023871006,0.00819984,99.367,99.35,15.0907]
[1645023872313,0.455545,99.43,99.351,181.5]
[1645023872512,0.1912811,99.393,99.36,15.0886]
[1645023872946,0.1912811,99.393,99.361,100.5]
[1645023873346,0.1912811,99.393,99.362,50.07]
[1645023873545,0.1912811,99.393,99.36,15.0906]
[1645023873746,0.1912811,99.393,99.341,24.8957]
[1645023875744,0.1912811,99.393,99.342,2.42509429]
[1645023876349,0.1912811,99.393,99.35,15.0919]
[1645023877750,0.2699239,99.393,99.35,15.0919]
[1645023883761,0.2699239,99.393,99.315,2.42509429]
[1645023883986,0.2699239,99.393,99.314,22.5016]
[1645023884958,15.0976,99.39,99.32,15.0972]
[1645023886159,15.0976,99.39,99.31,15.0998]
[1645023886663,100.5,99.389,99.31,15.0998]
[1645023886965,15.0976,99.39,99.31,15.0998]
[1645023887161,0.2699239,99.393,99.311,2.42509429]
[1645023887463,0.2699239,99.393,99.33,15.0941]
[1645023887662,0.2699239,99.393,99.331,24.8569]
[1645023888859,0.2699239,99.393,99.34,15.0935]
[1645023890865,0.2699239,99.393,99.333,15.322]
[1645023890866,0.2699239,99.393,99.35,15.0925]
[1645023891062,0.2699239,99.393,99.351,22.5045]
[1645023891461,0.2699239,99.393,99.277,2.84550282]
[1645023891462,0.2699239,99.393,99.3,12.05]
[1645023891665,0.2699239,99.393,99.318,22.5045]
[1645023892061,0.2699239,99.393,99.32,15.098]
[1645023896570,0.2699239,99.393,99.321,100.5]
[1645023896774,0.2699239,99.393,99.34,15.0946]
[1645023898373,0.2699239,99.393,99.318,22.5045]
[1645023899397,0.2699239,99.393,99.33,15.0963]
[1645023903498,0.2699239,99.393,99.331,100.5]
[1645023903703,0.2699239,99.393,99.34,15.092]
[1645023904505,0.2699239,99.393,99.341,2.41904188]
[1645023904901,0.2699239,99.393,99.33,2.41904188]
[1645023905105,0.2699239,99.393,99.35,15.0921]
[1645023905501,0.2699239,99.393,99.318,22.5045]
[1645023905905,0.2699239,99.393,99.319,102.91904188]
[1645023906101,0.2699239,99.393,99.319,2.41904188]
[1645023906402,0.2699239,99.393,99.34,15.0946]
[1645023906637,0.2699239,99.393,99.32,2.41904188]
[1645023907237,0.2699239,99.393,99.304,2.41904188]
[1645023907639,0.2699239,99.393,99.31,15.0991]
[1645023908036,0.2699239,99.393,99.304,2.41904188]
[1645023908037,1.6753117,99.393,99.311,24.5591]
[1645023908237,1.6753117,99.393,99.311,26.97814188]
[1645023908438,1.6753117,99.393,99.312,100.5]
[1645023908439,0.2699239,99.393,99.312,100.5]
[1645023908639,0.2699239,99.393,99.312,102.91904188]
[1645023908936,0.2699239,99.393,99.314,100.5]
[1645023909336,0.2699239,99.393,99.315,2.41904188]
[1645023909738,0.2699239,99.393,99.318,100.5]
[1645023909937,0.2699239,99.393,99.324,50.07]
[1645023910140,0.2699239,99.393,99.329,100.5]
[1645023910361,0.2699239,99.393,99.334,50.07]
[1645023910567,0.2699239,99.393,99.335,150.57]
[1645023910961,0.2699239,99.393,99.34,15.0918]
[1645023911161,0.2699239,99.393,99.341,22.5305]
[1645023911363,0.2699239,99.393,99.341,24.94954188]
[1645023911963,0.2699239,99.393,99.341,2.41904188]
[1645023912185,0.2699239,99.393,99.324,2.41904188]
[1645023912363,0.2699239,99.393,99.327,22.6809]
[1645023912766,0.2699239,99.393,99.328,100.5]
[1645023912964,0.2699239,99.393,99.328,102.91904188]
[1645023913263,0.2699239,99.393,99.34,15.0946]
[1645023913468,0.2699239,99.393,99.341,24.8755]
[1645023914668,0.2699239,99.393,99.35,15.0927]
[1645023914866,0.2699239,99.393,99.331,2.41904188]
[1645023915066,0.2699239,99.393,99.318,2.41904188]
[1645023915468,1.4053878,99.386,99.298,2.41904188]
[1645023915667,15.1005,99.37,99.3,15.1005]
[1645023916673,100.5,99.369,99.298,2.41904188]
[1645023916868,100.5,99.369,99.271,23.2344]
[1645023916869,100.5,99.359,99.28,2.41904188]
[1645023917275,100.5,99.359,99.271,23.2344]
[1645023917672,123.2753,99.369,99.272,2.41904188]
[1645023917871,22.7753,99.369,99.28,15.1033]
[1645023918275,22.7753,99.369,99.281,2.41904188]
[1645023918471,22.7753,99.369,99.282,22.5293]
[1645023918871,22.7753,99.369,99.283,2.41904188]
[1645023919072,1.4053878,99.38,99.283,2.41904188]
[1645023919272,0.2699239,99.393,99.283,2.41904188]
[1645023919471,0.2699239,99.393,99.291,100.5]
[1645023919672,0.2699239,99.393,99.294,50.07]
[1645023919883,0.2699239,99.393,99.298,50.07]
[1645023920072,0.2699239,99.393,99.31,12.05]
[1645023920276,5.718e-05,99.403,99.312,50.07]
[1645023920474,0.53990498,99.403,99.315,100.5]
[1645023920674,0.53990498,99.403,99.323,100.5]
[1645023920878,0.53990498,99.403,99.327,100.5]
[1645023921076,0.53990498,99.403,99.341,100.5]
[1645023921276,0.53990498,99.403,99.351,100.5]
[1645023922074,0.53990498,99.403,99.342,24.9103]
[1645023922675,0.53990498,99.403,99.342,27.33561338]
[1645023922875,0.53990498,99.403,99.35,15.0939]
[1645023925077,0.53990498,99.403,99.33,15.0958]
[1645023925878,15.0963,99.4,99.33,15.0958]
[1645023926076,15.6361478,99.4,99.33,15.0958]
[1645023927278,15.6361478,99.4,99.331,100.5]
[1645023927477,0.5398478,99.4,99.351,100.5]
[1645023927680,0.5398478,99.4,99.355,100.5]
[1645023927877,0.5398478,99.4,99.355,150.57]
[1645023928480,0.5398478,99.4,99.356,2.41946256]
[1645023928878,0.20044422,99.438,99.361,100.5]
[1645023929077,0.20044422,99.438,99.371,100.5]
[1645023929478,0.20044422,99.438,99.372,2.41946256]
[1645023929677,0.20044422,99.438,99.372,52.48946256]
[1645023930081,0.20044422,99.438,99.375,150.57]
[1645023930481,0.20044422,99.438,99.376,2.41946256]
[1645023930881,0.20044422,99.438,99.38,15.0839]
[1645023936383,0.20044422,99.438,99.381,102.91946256]
[1645023936608,0.20044422,99.438,99.39,15.0847]
[1645023938110,0.20044422,99.438,99.38,15.0893]
[1645023940422,0.25,99.42,99.38,15.0893]
[1645023940613,0.25,99.42,99.371,24.8871]
[1645023941214,15.546545,99.43,99.371,24.8871]
[1645023941616,0.455545,99.43,99.38,15.0894]
[1645023942716,1.40625981,99.467,99.371,27.30656256]
[1645023942717,6.77817989,99.579,99.474,2.42048712]
[1645023942921,0.5341911,99.557,99.481,245.75]
[1645023943115,0.4606786,99.586,99.486,166.5]
[1645023943116,9.6e-05,99.564,99.486,166.5]
[1645023943315,0.28492568,99.564,99.501,100.5]
[1645023943517,0.28492568,99.564,99.51,12.05]
[1645023943716,0.28492568,99.564,99.52,12.05]
[1645023943915,0.28492568,99.564,99.505,60.25]
[1645023944116,0.28492568,99.564,99.521,50.07]
[1645023944319,0.28492568,99.564,99.52,15.0635]
[1645023944619,0.28492568,99.564,99.49,12.05]
[1645023944815,6.0,99.561,99.49,12.05]
[1645023945315,1.31473768,99.561,99.49,12.05]
[1645023945518,1.31473768,99.561,99.51,15.068]
[1645023945916,1.31473768,99.561,99.51,27.118]
[1645023949423,1.31473768,99.561,99.511,2.42048712]
[1645023949622,1.31473768,99.561,99.52,15.0651]
[1645023949821,1.31473768,99.561,99.52,27.1151]
[1645023952123,1.31473768,99.561,99.52,15.0651]
[1645023954026,1.31473768,99.561,99.521,100.5]
[1645023954230,1.31473768,99.561,99.53,15.0637]
[1645023954427,1.31473768,99.561,99.531,100.5]
[1645023958316,45.30907924,99.59,99.56,15.0584]
[1645023960916,45.30907924,99.59,99.561,100.5]
[1645023961115,45.30907924,99.59,99.57,15.0565]
[1645023963117,45.30907924,99.59,99.55,27.1109]
[1645023964121,45.30907924,99.59,99.551,100.5]
[1645023964525,45.30907924,99.59,99.56,15.0591]
[1645023967129,45.30907924,99.59,99.561,100.5]
[1645023967530,9.68907924,99.59,99.571,100.5]
[1645023967930,9.68907924,99.59,99.572,50.07]
[1645023968130,0.57228184,99.617,99.579,100.5]
[1645023968331,0.57228184,99.617,99.583,100.5]
[1645023968531,0.4518149,99.68,99.586,60.25]
[1645023968833,0.4518149,99.68,99.6,12.05]
[1645023969929,0.4518149,99.68,99.6,27.1014]
[1645023969930,15.5060149,99.68,99.6,27.1014]
[1645023972330,100.5,99.679,99.6,27.1014]
[1645023972830,0.4518149,99.68,99.6,27.1014]
[1645023974040,0.4518149,99.68,99.601,50.07]
[1645023974233,15.5057149,99.68,99.61,15.053]
[1645023976641,0.29175896,99.628,99.61,15.053]
[1645023976839,0.29175896,99.628,99.498,5.019]
[1645023977039,105.87175896,99.628,99.52,12.05]
[1645023977237,105.87175896,99.628,99.517,24.7427]
[1645023977238,108.37764191,99.628,99.517,24.7427]
[1645023977438,7.87764191,99.628,99.517,24.7427]
[1645023977839,108.37764191,99.628,99.517,24.7427]
[1645023978039,15.0627,99.62,99.53,15.0638]
[1645023978241,100.5,99.619,99.53,15.0638]
[1645023978439,2.79764191,99.628,99.53,15.0638]
[1645023979843,15.0651,99.61,99.521,50.07]
[1645023980643,100.5,99.609,99.521,50.07]
[1645023980841,100.5,99.589,99.48,62.2754]
[1645023981044,100.5,99.589,99.48,12.05]
[1645023981850,15.0706,99.57,99.48,27.1206]
[1645023982049,15.0706,99.57,99.481,50.07]
[1645023983153,15.0706,99.57,99.49,15.0705]
[1645023983351,100.5,99.569,99.49,15.0705]
[1645023983752,15.0716,99.56,99.49,15.0705]
[1645023983952,15.0716,99.56,99.482,50.07]
[1645023984154,15.0716,99.56,99.483,5.024]
[1645023984358,15.0716,99.56,99.482,50.07]
[1645023985156,100.5,99.559,99.48,15.072]
[1645023985375,100.5,99.549,99.46,12.05]
[1645023986177,100.5,99.549,99.462,50.07]
[1645023986376,0.25,99.539,99.462,50.07]
[1645023986581,0.25,99.539,99.463,5.025]
[1645023986776,0.25,99.539,99.462,50.07]
[1645023987377,15.0748,99.54,99.462,50.07]
[1645023987779,15.0748,99.54,99.463,2.42071212]
[1645023987987,15.0723,99.56,99.47,15.0736]
[1645023988179,15.0723,99.56,99.474,50.07]
[1645023988580,0.25,99.55,99.474,50.07]
[1645023988980,15.323,99.55,99.471,2.42071212]
[1645023989582,50.2431,99.58,99.471,102.92071212]
[1645023989981,100.5,99.579,99.471,102.92071212]
[1645023990182,100.5,99.579,99.472,50.07]
[1645023990886,15.0714,99.56,99.48,15.0721]
[1645023991183,50.2308,99.6,99.481,100.5]
[1645023991384,50.2308,99.6,99.481,125.68781212]
[1645023991783,50.2308,99.6,99.482,2.42071212]
[1645023992186,100.5,99.599,99.483,100.5]
[1645023992483,100.5,99.599,99.487,100.5]
[1645023992683,0.25,99.589,99.491,50.07]
[1645023992885,100.5,99.579,99.501,50.07]
[1645023993087,100.5,99.579,99.48,12.05]
[1645023993383,2.50588295,99.578,99.48,12.05]
[1645023993583,0.25,99.589,99.48,12.05]
[1645023993786,100.75,99.589,99.48,12.05]
[1645023994286,6.0,99.579,99.481,50.07]
[1645023994486,100.5,99.578,99.481,50.07]
[1645023994887,100.5,99.569,99.481,50.07]
[1645023995086,100.5,99.569,99.48,27.1223]
[1645023995288,100.5,99.569,99.46,12.05]
[1645023995486,2.50588295,99.568,99.46,12.05]
[1645023996286,15.0719,99.56,99.47,15.0738]
[1645023996486,2.50588295,99.588,99.48,12.05]
[1645023996686,100.5,99.612,99.481,23.6583]
[1645023997086,100.5,99.612,99.482,100.5]
[1645023997288,100.5,99.612,99.481,23.6583]
[1645023997492,100.5,99.579,99.49,15.0698]
[1645023997687,100.5,99.579,99.481,23.6583]
[1645023998090,100.5,99.579,99.471,50.07]
[1645023998588,100.5,99.588,99.471,50.07]
[1645023998991,15.0723,99.56,99.471,50.07]
[1645024000592,100.5,99.559,99.471,50.07]
[1645024000893,100.5,99.559,99.431,25.50164315]
[1645024000894,100.5,99.539,99.44,27.1277]
[1645024001092,6.0,99.549,99.44,27.1277]
[1645024001692,100.5,99.548,99.44,12.05]
[1645024001992,100.5,99.548,99.428,45.241]
[1645024001993,103.00588295,99.548,99.428,45.241]
[1645024002192,2.50588295,99.547,99.428,45.241]
[1645024002594,2.50588295,99.547,99.42,12.05]
[1645024002790,15.0777,99.52,99.42,12.05]
[1645024003001,2.50588295,99.547,99.42,27.1304]
[1645024003002,100.5,99.519,99.42,27.1304]
[1645024003197,47.4255,99.546,99.42,27.1304]
[1645024003396,100.5,99.545,99.42,27.1304]
[1645024003795,100.5,99.545,99.42,26.6304]
[1645024004195,15.0788,99.51,99.42,26.6304]
[1645024005101,15.0775,99.52,99.44,15.0775]
[1645024005298,15.0775,99.52,99.44,27.1275]
[1645024005701,12.05,99.58,99.447,100.5]
[1645024005998,322.69684264,99.627,99.461,100.5]
[1645024005999,100.5,99.597,99.461,100.5]
[1645024006201,100.5,99.597,99.473,100.5]
[1645024006399,100.5,99.597,99.479,100.5]
[1645024006598,0.22414264,99.627,99.491,100.5]
[1645024006801,5.70858895,99.612,99.5,12.05]
[1645024006999,0.22414264,99.627,99.5,12.05]
[1645024007200,5.70812935,99.612,99.5,12.05]
[1645024007400,5.70812935,99.612,99.501,47.8664]
[1645024007603,5.70812935,99.612,99.502,100.5]
[1645024007817,15.0654,99.6,99.51,15.0657]
[1645024008003,15.0654,99.6,99.511,100.5]
[1645024008199,15.0654,99.6,99.513,100.5]
[1645024008398,15.0654,99.6,99.514,55.092]
[1645024008601,15.0654,99.6,99.514,50.07]
[1645024008800,15.0654,99.6,99.51,12.05]
[1645024009800,15.0654,99.6,99.51,27.1172]
[1645024010305,0.25,99.59,99.51,27.1172]
[1645024010504,100.5,99.589,99.51,27.1172]
[1645024011311,100.5,99.589,99.51,12.05]
[1645024011534,15.0684,99.58,99.51,12.05]
[1645024013135,0.22414264,99.627,99.511,100.5]
[1645024013335,0.25,99.618,99.511,156.26101212]
[1645024013533,5.70776049,99.617,99.512,2.42071212]
[1645024013732,0.22414264,99.627,99.513,100.5]
[1645024013936,5.70725784,99.626,99.513,100.5]
[1645024014138,5.70725784,99.626,99.514,2.42071212]
[1645024014333,5.70725784,99.626,99.515,100.5]
[1645024014536,5.70725784,99.626,99.531,50.07]
[1645024014934,15.0632,99.62,99.541,50.07]
[1645024015136,0.25,99.616,99.541,50.07]
[1645024015337,0.25,99.616,99.54,15.0624]
[1645024015338,0.22414264,99.627,99.542,150.57]
[1645024015541,0.22414264,99.627,99.544,100.5]
[1645024015940,0.22414264,99.627,99.55,15.061]
[1645024017238,0.22414264,99.627,99.551,100.5]
[1645024017439,0.22414264,99.627,99.57,15.0572]
[1645024017640,0.22414264,99.627,99.571,100.5]
[1645024017841,0.22414264,99.627,99.572,60.25]
[1645024018040,0.22414264,99.627,99.583,100.5]
[1645024018240,0.22414264,99.627,99.571,2.42071212]
[1645024018440,0.21343898,99.639,99.591,100.5]
[1645024018641,0.21343898,99.639,99.601,100.5]
[1645024018840,0.44828528,99.633,99.58,12.05]
[1645024019039,0.44828528,99.633,99.544,23.4552]
[1645024019544,100.5,99.629,99.51,27.1137]
[1645024019742,106.5,99.628,99.511,100.5]
[1645024019943,0.25,99.619,99.512,5.021]
[1645024020345,0.25,99.619,99.513,100.5]
[1645024020644,100.75,99.619,99.516,50.07]
[1645024020847,0.25,99.619,99.511,5.021]
[1645024021044,0.25,99.619,99.51,12.05]
[1645024022244,2.50588295,99.618,99.51,12.05]
[1645024022445,2.50588295,99.618,99.511,50.07]
[1645024023249,100.5,99.609,99.511,50.07]
[1645024023651,2.50588295,99.608,99.48,12.05]
[1645024023853,100.5,99.598,99.43,5.24556032]
[1645024024052,100.5,99.589,99.45,12.05]
[1645024024253,100.5,99.589,99.465,48.1235]
[1645024024450,15.0733,99.57,99.465,48.1235]
[1645024024653,15.0733,99.57,99.467,150.57]
[1645024025154,15.0733,99.57,99.467,50.07]
[1645024025354,103.00588295,99.569,99.467,50.07]
[1645024025553,15.0742,99.56,99.467,50.07]
[1645024026152,15.0742,99.56,99.467,100.5]
[1645024026352,15.0742,99.56,99.465,48.1235]
[1645024026353,22.8467,99.598,99.469,100.5]
[1645024026553,12.05,99.61,99.473,160.75]
[1645024026754,0.21343898,99.639,99.48,60.25]
[1645024026755,15.0684,99.6,99.48,60.25]
[1645024026958,2.50588295,99.618,99.491,100.5]
[1645024027156,2.50588295,99.618,99.493,150.57]
[1645024027760,15.0675,99.6,99.493,50.07]
[1645024027959,100.5,99.599,99.493,50.07]
[1645024028160,15.0675,99.6,99.493,50.07]
[1645024029062,100.5,99.599,99.493,50.07]
[1645024029358,0.25,99.608,99.501,50.07]
[1645024029561,0.25,99.608,99.502,173.2938]
[1645024029959,2.50588295,99.618,99.502,173.2938]
[1645024030161,2.50588295,99.618,99.502,72.7938]
[1645024030359,2.50588295,99.607,99.502,72.7938]
[1645024031362,15.0693,99.59,99.502,72.7938]
[1645024032765,100.5,99.589,99.502,72.7938]
[1645024032968,100.5,99.579,99.47,12.05]
[1645024033166,100.5,99.579,99.461,50.07]
[1645024033366,100.5,99.579,99.451,47.3988]
[1645024033367,2.50588295,99.578,99.451,47.3988]
[1645024033868,100.5,99.579,99.451,47.3988]
[1645024034071,2.50588295,99.578,99.465,24.8386]
[1645024034969,15.074,99.56,99.466,50.07]
[1645024036370,15.074,99.56,99.468,50.07]
[1645024039192,29.62698295,99.59,99.468,50.07]
[1645024039492,0.25,99.579,99.472,110.32]
[1645024039890,0.25,99.579,99.479,100.5]
[1645024040092,0.25,99.579,99.491,100.5]
[1645024040689,0.25,99.579,99.495,100.5]
[1645024040890,0.25,99.579,99.498,50.07]
[1645024041492,106.5,99.608,99.498,50.07]
[1645024041695,5.70883758,99.607,99.498,50.07]
[1645024041894,19.7720331,99.607,99.498,50.07]
[1645024042095,5.70883758,99.606,99.498,50.07]
[1645024042299,19.7720331,99.606,99.498,50.07]
[1645024042497,2.50588295,99.605,99.498,50.07]
[1645024042694,14.06319552,99.605,99.498,50.07]
[1645024042896,14.06319552,99.605,99.501,50.07]
[1645024043097,2.50588295,99.605,99.501,50.07]
[1645024043297,2.50588295,99.605,99.506,100.5]
[1645024043496,2.50588295,99.605,99.508,100.5]
[1645024043696,2.50588295,99.605,99.512,100.5]
[1645024043897,0.25,99.595,99.512,150.57]
[1645024045198,2.82019095,99.625,99.512,150.57]
[1645024045401,0.25,99.615,99.514,150.57]
[1645024045602,11.56299888,99.624,99.521,50.07]
[1645024045802,11.56299888,99.624,99.524,160.75]
[1645024046004,0.44828528,99.627,99.528,160.75]